[Event "Early-Titled-Tuesday-Blitz-February-13-2024"]
[Site "Chess.com"]
[Date "2024.02.13"]
[Round "8"]
[White "Evgeny81"]
[Black "BogdanDeac"]
[Result "0-1"]
[WhiteElo "2748"]
[BlackElo "3007"]
[TimeControl "180+1"]
[EndTime "9:34:01 PST"]
[Termination "BogdanDeac won by resignation"]

1. Nf3 {[%clk 0:02:57.4]} 1... d5 {[%clk 0:02:59.6]} 2. c4 {[%clk 0:02:57.4]}
2... d4 {[%clk 0:02:59.1]} 3. g3 {[%clk 0:02:57.7]} 3... Nc6 {[%clk 0:02:58.7]}
4. Bg2 {[%clk 0:02:58.3]} 4... e5 {[%clk 0:02:59.3]} 5. d3 {[%clk 0:02:58.9]}
5... Bb4+ {[%clk 0:02:58.9]} 6. Bd2 {[%clk 0:02:58.9]} 6... a5 {[%clk
0:02:59.4]} 7. O-O {[%clk 0:02:59]} 7... Nf6 {[%clk 0:03:00]} 8. Bg5 {[%clk
0:02:58.9]} 8... O-O {[%clk 0:02:58.8]} 9. Na3 {[%clk 0:02:58.5]} 9... h6 {[%clk
0:02:55.2]} 10. Bxf6 {[%clk 0:02:58]} 10... Qxf6 {[%clk 0:02:56.1]} 11. Nc2
{[%clk 0:02:58.3]} 11... Bf5 {[%clk 0:02:53.3]} 12. Nd2 {[%clk 0:02:57.9]} 12...
Bd6 {[%clk 0:02:45.9]} 13. a3 {[%clk 0:02:52.3]} 13... a4 {[%clk 0:02:08]} 14.
Ne4 {[%clk 0:02:47.4]} 14... Qe7 {[%clk 0:02:02.9]} 15. Qd2 {[%clk 0:02:46.4]}
15... Na5 {[%clk 0:01:52.5]} 16. Nxd6 {[%clk 0:02:40.4]} 16... Qxd6 {[%clk
0:01:51.2]} 17. Qb4 {[%clk 0:02:40.3]} 17... c5 {[%clk 0:01:51.1]} 18. Qe1
{[%clk 0:02:32.9]} 18... Nxc4 {[%clk 0:01:13.1]} 19. dxc4 {[%clk 0:02:23.5]}
19... Bxc2 {[%clk 0:01:12.7]} 20. Qc1 {[%clk 0:02:23.7]} 20... Bf5 {[%clk
0:00:44.4]} 21. Bxb7 {[%clk 0:02:23.1]} 21... Rab8 {[%clk 0:00:45]} 22. Bd5
{[%clk 0:02:23.4]} 22... Qb6 {[%clk 0:00:45.4]} 23. e4 {[%clk 0:02:20.5]} 23...
Bh3 {[%clk 0:00:42.7]} 24. Re1 {[%clk 0:02:12.6]} 24... Qxb2 {[%clk 0:00:37.5]}
25. Qd1 {[%clk 0:02:13.1]} 25... g6 {[%clk 0:00:19]} 26. Qxa4 {[%clk 0:02:07.1]}
26... Qc3 {[%clk 0:00:18.3]} 27. Qd1 {[%clk 0:02:07.3]} 27... Rb2 {[%clk
0:00:13.8]} 28. Rc1 {[%clk 0:01:49.5]} 28... Qxa3 {[%clk 0:00:12.6]} 29. Ra1
{[%clk 0:01:47]} 29... Qc3 {[%clk 0:00:12.4]} 30. Rc1 {[%clk 0:01:46.5]} 30...
Qb3 {[%clk 0:00:06.7]} 31. Qxb3 {[%clk 0:01:43.9]} 31... Rxb3 {[%clk 0:00:07.6]}
32. Rc2 {[%clk 0:01:35.9]} 32... Rfb8 {[%clk 0:00:04.1]} 33. f4 {[%clk
0:01:36.1]} 33... exf4 {[%clk 0:00:03.2]} 34. gxf4 {[%clk 0:01:36.2]} 34... Rb2
{[%clk 0:00:03.8]} 35. Rf2 {[%clk 0:01:34.3]} 35... d3 {[%clk 0:00:03.3]} 36.
Rd1 {[%clk 0:01:30.4]} 36... Rb1 {[%clk 0:00:02.4]} 37. Rd2 {[%clk 0:01:28.5]}
37... Bg4 {[%clk 0:00:02.6]} 38. Rxb1 {[%clk 0:01:27.4]} 38... Rxb1+ {[%clk
0:00:03.5]} 39. Kf2 {[%clk 0:01:27.8]} 39... Be2 {[%clk 0:00:04.2]} 40. Ke3
{[%clk 0:01:21.1]} 40... Rb4 {[%clk 0:00:02.7]} 41. Ra2 {[%clk 0:01:14.8]} 41...
Bf1 {[%clk 0:00:02.8]} 42. Kf2 {[%clk 0:01:06.7]} 42... d2 {[%clk 0:00:02.6]}
43. Rxd2 {[%clk 0:01:05]} 43... Bxc4 {[%clk 0:00:03.2]} 44. Ke3 {[%clk
0:00:56.8]} 44... Rb3+ {[%clk 0:00:03.1]} 45. Kf2 {[%clk 0:00:57.1]} 45... Rd3
{[%clk 0:00:02.4]} 46. Rxd3 {[%clk 0:00:54]} 46... Bxd3 {[%clk 0:00:02.8]} 47.
Ke3 {[%clk 0:00:54.6]} 47... Bb5 {[%clk 0:00:03.4]} 48. e5 {[%clk 0:00:54.1]}
48... Kf8 {[%clk 0:00:03.6]} 49. h4 {[%clk 0:00:52.9]} 49... Ke7 {[%clk
0:00:03.7]} 50. Ke4 {[%clk 0:00:47.8]} 50... Bd7 {[%clk 0:00:03.7]} 51. Ke3
{[%clk 0:00:48.2]} 51... Be6 {[%clk 0:00:03.6]} 52. Be4 {[%clk 0:00:45.7]} 52...
h5 {[%clk 0:00:03.8]} 53. Kd2 {[%clk 0:00:44.6]} 53... Kd7 {[%clk 0:00:04.2]}
54. Kc3 {[%clk 0:00:44.8]} 54... Kc7 {[%clk 0:00:04.9]} 55. Bf3 {[%clk
0:00:40.5]} 55... Kb6 {[%clk 0:00:05.3]} 56. Be4 {[%clk 0:00:40.7]} 56... Ka5
{[%clk 0:00:05.7]} 57. Bc6 {[%clk 0:00:40]} 57... Kb6 {[%clk 0:00:05.6]} 58. Be4
{[%clk 0:00:39.7]} 58... Kb5 {[%clk 0:00:05.9]} 59. Bf3 {[%clk 0:00:26.5]} 59...
Ka4 {[%clk 0:00:05.5]} 60. Bc6+ {[%clk 0:00:23.7]} 60... Ka5 {[%clk 0:00:05.4]}
61. Be4 {[%clk 0:00:23.5]} 61... Kb6 {[%clk 0:00:05]} 62. Bf3 {[%clk 0:00:23.7]}
62... Kc7 {[%clk 0:00:05.2]} 63. Be4 {[%clk 0:00:24.1]} 63... Kd7 {[%clk
0:00:05.3]} 64. Bf3 {[%clk 0:00:24]} 64... Ba2 {[%clk 0:00:05.4]} 65. f5 {[%clk
0:00:14.6]} 65... Ke7 {[%clk 0:00:04.5]} 66. Be2 {[%clk 0:00:09.4]} 66... gxf5
{[%clk 0:00:04.3]} 67. Bxh5 {[%clk 0:00:09.3]} 67... Ke6 {[%clk 0:00:04.8]} 68.
Bf3 {[%clk 0:00:07.8]} 68... Kxe5 {[%clk 0:00:04.4]} 69. h5 {[%clk 0:00:08.2]}
69... Kf6 {[%clk 0:00:04.7]} 70. Kb2 {[%clk 0:00:06]} 70... Be6 {[%clk
0:00:04.5]} 71. Kc3 {[%clk 0:00:06.7]} 71... Kg5 {[%clk 0:00:04.8]} 72. Kd3
{[%clk 0:00:06.6]} 72... f4 {[%clk 0:00:04.6]} 73. Ke4 {[%clk 0:00:07]} 73... c4
{[%clk 0:00:04.6]} 74. Kd4 {[%clk 0:00:07.4]} 74... f6 {[%clk 0:00:04.2]} 75.
Ke4 {[%clk 0:00:07.1]} 75... Bg8 {[%clk 0:00:04.2]} 76. Kd4 {[%clk 0:00:07.2]}
76... Bf7 {[%clk 0:00:04.5]} 77. Ke4 {[%clk 0:00:04.9]} 77... Bxh5 {[%clk
0:00:04.4]} 78. Bg2 {[%clk 0:00:05]} 78... Be2 {[%clk 0:00:03.6]} 79. Kd4 {[%clk
0:00:04.6]} 79... f3 {[%clk 0:00:04]} 0-1

[Event "Early-Titled-Tuesday-Blitz-February-13-2024"]
[Site "Chess.com"]
[Date "2024.02.13"]
[Round "8"]
[White "Kopytkin"]
[Black "zverr1"]
[Result "1-0"]
[WhiteElo "2394"]
[BlackElo "2551"]
[TimeControl "180+1"]
[EndTime "9:34:02 PST"]
[Termination "Kopytkin won by checkmate"]

1. d4 {[%clk 0:03:00.9]} 1... Nf6 {[%clk 0:02:56.8]} 2. Bg5 {[%clk 0:03:00.6]}
2... Ne4 {[%clk 0:02:56.2]} 3. Bf4 {[%clk 0:03:00.1]} 3... g6 {[%clk 0:02:55.5]}
4. f3 {[%clk 0:02:58.7]} 4... Nf6 {[%clk 0:02:55.5]} 5. e4 {[%clk 0:02:58.9]}
5... d6 {[%clk 0:02:52.5]} 6. Qd2 {[%clk 0:02:59]} 6... Bg7 {[%clk 0:02:52.5]}
7. Nc3 {[%clk 0:02:56.9]} 7... c6 {[%clk 0:02:52.2]} 8. a4 {[%clk 0:02:55.8]}
8... Qa5 {[%clk 0:02:51.3]} 9. Nge2 {[%clk 0:02:45.9]} 9... e5 {[%clk
0:02:41.5]} 10. dxe5 {[%clk 0:02:45.4]} 10... dxe5 {[%clk 0:02:42.4]} 11. Bg5
{[%clk 0:02:43.9]} 11... O-O {[%clk 0:02:41.9]} 12. Nc1 {[%clk 0:02:34.8]} 12...
Be6 {[%clk 0:02:31.8]} 13. Be2 {[%clk 0:02:07.3]} 13... Na6 {[%clk 0:02:22.9]}
14. O-O {[%clk 0:02:03.5]} 14... Rad8 {[%clk 0:02:02.5]} 15. Nd3 {[%clk
0:02:02.8]} 15... Nc5 {[%clk 0:01:33.2]} 16. b4 {[%clk 0:01:37.7]} 16... Rxd3
{[%clk 0:01:32.9]} 17. bxa5 {[%clk 0:01:15.2]} 17... Rxd2 {[%clk 0:01:33]} 18.
Bxd2 {[%clk 0:01:16.1]} 18... Na6 {[%clk 0:01:12.6]} 19. Be3 {[%clk 0:00:51]}
19... Nd7 {[%clk 0:01:06.9]} 20. Bxa6 {[%clk 0:00:37.9]} 20... bxa6 {[%clk
0:01:06.9]} 21. Rab1 {[%clk 0:00:38.6]} 21... Rc8 {[%clk 0:00:54.5]} 22. Rfd1
{[%clk 0:00:37.9]} 22... Nf8 {[%clk 0:00:53.5]} 23. Bxa7 {[%clk 0:00:34.4]}
23... Bc4 {[%clk 0:00:46.6]} 24. Rb8 {[%clk 0:00:33]} 24... Rxb8 {[%clk
0:00:39.9]} 25. Bxb8 {[%clk 0:00:33.9]} 25... Ne6 {[%clk 0:00:40.6]} 26. Rd6
{[%clk 0:00:27.7]} 26... Bh6 {[%clk 0:00:22.6]} 27. Rxc6 {[%clk 0:00:19]} 27...
Be3+ {[%clk 0:00:23.3]} 28. Kh1 {[%clk 0:00:19.2]} 28... Bf1 {[%clk 0:00:24]}
29. Bxe5 {[%clk 0:00:16]} 29... Kf8 {[%clk 0:00:23.1]} 30. Nd5 {[%clk
0:00:12.4]} 30... Bg5 {[%clk 0:00:16.6]} 31. Rc8+ {[%clk 0:00:12.4]} 31... Nd8
{[%clk 0:00:13.4]} 32. Nf6 {[%clk 0:00:09]} 32... Ke7 {[%clk 0:00:12.3]} 33.
Nxh7 {[%clk 0:00:07.6]} 33... Kd7 {[%clk 0:00:07.6]} 34. Ra8 {[%clk 0:00:06.8]}
34... Be3 {[%clk 0:00:04.6]} 35. Nf6+ {[%clk 0:00:03.7]} 35... Ke7 {[%clk
0:00:03.3]} 36. Nd5+ {[%clk 0:00:02.8]} 36... Kd7 {[%clk 0:00:02.6]} 37. Nxe3
{[%clk 0:00:02.9]} 37... Be2 {[%clk 0:00:03]} 38. Nd5 {[%clk 0:00:03]} 38... Nc6
{[%clk 0:00:03]} 39. Bc3 {[%clk 0:00:03.3]} 39... f5 {[%clk 0:00:02.4]} 40. Nb6+
{[%clk 0:00:03.4]} 40... Kc7 {[%clk 0:00:02.4]} 41. Nd5+ {[%clk 0:00:03.3]}
41... Kd6 {[%clk 0:00:02.1]} 42. Nf4 {[%clk 0:00:03.6]} 42... Bd1 {[%clk
0:00:01.6]} 43. exf5 {[%clk 0:00:03.5]} 43... g5 {[%clk 0:00:01.6]} 44. h4
{[%clk 0:00:04.4]} 44... gxf4 {[%clk 0:00:01.7]} 45. h5 {[%clk 0:00:05]} 45...
Bxc2 {[%clk 0:00:02.2]} 46. h6 {[%clk 0:00:05.3]} 46... Bxf5 {[%clk 0:00:02.9]}
47. Rh8 {[%clk 0:00:04.7]} 47... Ne7 {[%clk 0:00:02.1]} 48. h7 {[%clk
0:00:04.4]} 48... Ke6 {[%clk 0:00:02.6]} 49. Ra8 {[%clk 0:00:05]} 49... Bxh7
{[%clk 0:00:02.8]} 50. Rxa6+ {[%clk 0:00:05.6]} 50... Kd5 {[%clk 0:00:02.6]} 51.
Ra7 {[%clk 0:00:05.8]} 51... Ke6 {[%clk 0:00:02.9]} 52. Rb7 {[%clk 0:00:05.5]}
52... Bd3 {[%clk 0:00:02.2]} 53. a6 {[%clk 0:00:05.5]} 53... Nd5 {[%clk
0:00:02.7]} 54. a7 {[%clk 0:00:05.3]} 54... Nxc3 {[%clk 0:00:03.3]} 55. a8=Q
{[%clk 0:00:05.3]} 55... Ne2 {[%clk 0:00:03.4]} 56. Qc8+ {[%clk 0:00:06.2]}
56... Ke5 {[%clk 0:00:02.1]} 57. Re7+ {[%clk 0:00:06.4]} 57... Kd4 {[%clk
0:00:02.8]} 58. Qd8+ {[%clk 0:00:06.6]} 58... Kc3 {[%clk 0:00:02.8]} 59. Rc7+
{[%clk 0:00:07.2]} 59... Kd2 {[%clk 0:00:03]} 60. Rd7 {[%clk 0:00:07.5]} 60...
Ng3+ {[%clk 0:00:02.2]} 61. Kh2 {[%clk 0:00:08]} 61... Nf1+ {[%clk 0:00:02.1]}
62. Kh3 {[%clk 0:00:08.5]} 62... Ke2 {[%clk 0:00:02.3]} 63. Rxd3 {[%clk
0:00:09.1]} 63... Ng3 {[%clk 0:00:01.9]} 64. Rd2+ {[%clk 0:00:09.3]} 64... Kf1
{[%clk 0:00:02.6]} 65. Rd1+ {[%clk 0:00:09.9]} 65... Kf2 {[%clk 0:00:03.4]} 66.
Qd2+ {[%clk 0:00:10.3]} 66... Ne2 {[%clk 0:00:04.1]} 67. Rf1+ {[%clk 0:00:09.8]}
67... Kxf1 {[%clk 0:00:04.2]} 68. Qxe2+ {[%clk 0:00:10.2]} 68... Kxe2 {[%clk
0:00:04.8]} 69. a5 {[%clk 0:00:10.6]} 69... Kf2 {[%clk 0:00:05.3]} 70. a6 {[%clk
0:00:11]} 70... Kf1 {[%clk 0:00:05.3]} 71. a7 {[%clk 0:00:11.3]} 71... Kf2
{[%clk 0:00:05.7]} 72. a8=Q {[%clk 0:00:11.7]} 72... Kf1 {[%clk 0:00:06.3]} 73.
Qb8 {[%clk 0:00:10.8]} 73... Kf2 {[%clk 0:00:06.4]} 74. Qxf4 {[%clk 0:00:11.3]}
74... Kg1 {[%clk 0:00:06.9]} 75. Qc1+ {[%clk 0:00:11]} 75... Kf2 {[%clk
0:00:07.1]} 76. f4 {[%clk 0:00:10.9]} 76... Ke2 {[%clk 0:00:07.6]} 77. f5 {[%clk
0:00:10.6]} 77... Kd3 {[%clk 0:00:08.2]} 78. f6 {[%clk 0:00:10.6]} 78... Ke2
{[%clk 0:00:09.1]} 79. f7 {[%clk 0:00:10.2]} 79... Kd3 {[%clk 0:00:10]} 80. Qe1
{[%clk 0:00:09.2]} 80... Kd4 {[%clk 0:00:10.9]} 81. f8=Q {[%clk 0:00:09.3]}
81... Kc4 {[%clk 0:00:11.1]} 82. Qd8 {[%clk 0:00:08.8]} 82... Kb3 {[%clk
0:00:10.9]} 83. Qed1+ {[%clk 0:00:08.2]} 83... Ka2 {[%clk 0:00:11.3]} 84. Q1d2+
{[%clk 0:00:07.6]} 84... Kb3 {[%clk 0:00:11.4]} 85. Q2d3+ {[%clk 0:00:07.6]}
85... Kb4 {[%clk 0:00:11.7]} 86. Qb6+ {[%clk 0:00:07.6]} 86... Ka4 {[%clk
0:00:11.9]} 87. Qdb3# {[%clk 0:00:07.9]} 1-0

[Event "Early-Titled-Tuesday-Blitz-February-13-2024"]
[Site "Chess.com"]
[Date "2024.02.13"]
[Round "8"]
[White "Attacks_Hurricane"]
[Black "Vaibhavraut99"]
[Result "0-1"]
[WhiteElo "2359"]
[BlackElo "2690"]
[TimeControl "180+1"]
[EndTime "9:34:56 PST"]
[Termination "Vaibhavraut99 won by checkmate"]

1. e4 {[%clk 0:03:00.9]} 1... c6 {[%clk 0:02:48.7]} 2. d4 {[%clk 0:02:59.8]}
2... d5 {[%clk 0:02:48.4]} 3. exd5 {[%clk 0:03:00.7]} 3... cxd5 {[%clk
0:02:48.6]} 4. Nf3 {[%clk 0:03:00.1]} 4... Nf6 {[%clk 0:02:48.5]} 5. Bb5+ {[%clk
0:02:56.7]} 5... Bd7 {[%clk 0:02:44.1]} 6. Bd3 {[%clk 0:02:45.7]} 6... g6 {[%clk
0:02:42.9]} 7. O-O {[%clk 0:02:45.8]} 7... Bg7 {[%clk 0:02:43.2]} 8. h3 {[%clk
0:02:45.8]} 8... O-O {[%clk 0:02:43.4]} 9. Re1 {[%clk 0:02:46.3]} 9... Nc6
{[%clk 0:02:41.8]} 10. c3 {[%clk 0:02:45.3]} 10... Bf5 {[%clk 0:02:35.2]} 11.
Bxf5 {[%clk 0:02:37.4]} 11... gxf5 {[%clk 0:02:36.1]} 12. Bf4 {[%clk 0:02:25.8]}
12... Kh8 {[%clk 0:02:31.3]} 13. Nbd2 {[%clk 0:02:24.2]} 13... e6 {[%clk
0:02:31]} 14. Ne5 {[%clk 0:02:21.4]} 14... Nxe5 {[%clk 0:02:28]} 15. Bxe5 {[%clk
0:02:22.3]} 15... Rg8 {[%clk 0:02:26.2]} 16. Kh1 {[%clk 0:02:18.9]} 16... Nd7
{[%clk 0:02:22.1]} 17. Nf3 {[%clk 0:02:12.2]} 17... Bxe5 {[%clk 0:02:17]} 18.
Nxe5 {[%clk 0:02:13.1]} 18... Nxe5 {[%clk 0:02:15.8]} 19. Rxe5 {[%clk
0:02:12.2]} 19... Qg5 {[%clk 0:02:07]} 20. Qf3 {[%clk 0:02:11.5]} 20... Rg7
{[%clk 0:02:06.8]} 21. Rg1 {[%clk 0:02:10.8]} 21... Rag8 {[%clk 0:02:06]} 22.
Re2 {[%clk 0:01:52.4]} 22... Qh4 {[%clk 0:02:00.4]} 23. Re3 {[%clk 0:01:46]}
23... h6 {[%clk 0:01:57.3]} 24. Re2 {[%clk 0:01:43.6]} 24... Kh7 {[%clk
0:01:56.3]} 25. Re3 {[%clk 0:01:40.3]} 25... Rg4 {[%clk 0:01:53.4]} 26. Re2
{[%clk 0:01:30.4]} 26... R4g5 {[%clk 0:01:32.1]} 27. Kh2 {[%clk 0:01:26.7]}
27... Rh5 {[%clk 0:01:29.1]} 28. Re3 {[%clk 0:01:20.7]} 28... Qg4 {[%clk
0:01:27.4]} 29. Qxg4 {[%clk 0:01:16.8]} 29... fxg4 {[%clk 0:01:27.1]} 30. Rg3
{[%clk 0:01:13.9]} 30... Rf5 {[%clk 0:01:04.7]} 31. Rf1 {[%clk 0:01:04.6]} 31...
h5 {[%clk 0:01:04.3]} 32. f4 {[%clk 0:00:56.1]} 32... gxh3 {[%clk 0:00:45.3]}
33. Rxg8 {[%clk 0:00:53]} 33... Kxg8 {[%clk 0:00:46.2]} 34. Kxh3 {[%clk
0:00:52.6]} 34... Kg7 {[%clk 0:00:39.2]} 35. g4 {[%clk 0:00:51.1]} 35... hxg4+
{[%clk 0:00:39.1]} 36. Kxg4 {[%clk 0:00:52]} 36... Rf6 {[%clk 0:00:31.6]} 37. a4
{[%clk 0:00:35.8]} 37... Rg6+ {[%clk 0:00:29.1]} 38. Kf3 {[%clk 0:00:35.5]}
38... Rh6 {[%clk 0:00:24.6]} 39. Rg1+ {[%clk 0:00:31.8]} 39... Kf6 {[%clk
0:00:24.7]} 40. Rg2 {[%clk 0:00:21.7]} 40... Rh3+ {[%clk 0:00:21.2]} 41. Kg4
{[%clk 0:00:20.6]} 41... Rh1 {[%clk 0:00:18.8]} 42. b3 {[%clk 0:00:17.3]} 42...
Rc1 {[%clk 0:00:15.3]} 43. Rg3 {[%clk 0:00:16.3]} 43... a5 {[%clk 0:00:15.5]}
44. Rh3 {[%clk 0:00:13.9]} 44... b6 {[%clk 0:00:13.2]} 45. Rh6+ {[%clk
0:00:13.9]} 45... Kg7 {[%clk 0:00:12]} 46. Rh3 {[%clk 0:00:12.9]} 46... Kg6
{[%clk 0:00:12.6]} 47. Rg3 {[%clk 0:00:11.5]} 47... Rb1 {[%clk 0:00:12.1]} 48.
Kh4+ {[%clk 0:00:12.2]} 48... Kf6 {[%clk 0:00:12.6]} 49. c4 {[%clk 0:00:13.1]}
49... Rd1 {[%clk 0:00:09.6]} 50. c5 {[%clk 0:00:12.1]} 50... Rxd4 {[%clk
0:00:07.1]} 51. cxb6 {[%clk 0:00:11.9]} 51... Rb4 {[%clk 0:00:06]} 52. Rc3
{[%clk 0:00:11.7]} 52... Rxb6 {[%clk 0:00:05.3]} 53. Kg4 {[%clk 0:00:12.2]}
53... d4 {[%clk 0:00:04.2]} 54. Rc4 {[%clk 0:00:11.4]} 54... Rd6 {[%clk
0:00:03.5]} 55. Kf3 {[%clk 0:00:11.9]} 55... d3 {[%clk 0:00:02.3]} 56. Rc1
{[%clk 0:00:11.4]} 56... d2 {[%clk 0:00:02.5]} 57. Rd1 {[%clk 0:00:11.7]} 57...
Kf5 {[%clk 0:00:03.2]} 58. Ke3 {[%clk 0:00:11.3]} 58... Rb6 {[%clk 0:00:02.9]}
59. Rxd2 {[%clk 0:00:11]} 59... Rxb3+ {[%clk 0:00:03.3]} 60. Kd4 {[%clk
0:00:11.2]} 60... Rb4+ {[%clk 0:00:03.7]} 61. Ke3 {[%clk 0:00:10.8]} 61... Rxa4
{[%clk 0:00:04.3]} 62. Rd3 {[%clk 0:00:10.2]} 62... Re4+ {[%clk 0:00:04]} 63.
Kf3 {[%clk 0:00:10.4]} 63... Rxf4+ {[%clk 0:00:04.6]} 64. Kg3 {[%clk 0:00:11.3]}
64... a4 {[%clk 0:00:04.7]} 65. Rc3 {[%clk 0:00:11]} 65... Rg4+ {[%clk 0:00:05]}
66. Kf3 {[%clk 0:00:11]} 66... e5 {[%clk 0:00:05.3]} 67. Rc7 {[%clk 0:00:10.8]}
67... Rf4+ {[%clk 0:00:05.9]} 68. Ke3 {[%clk 0:00:10.9]} 68... f6 {[%clk
0:00:06.8]} 69. Ra7 {[%clk 0:00:11.5]} 69... Rh4 {[%clk 0:00:06.8]} 70. Ra6
{[%clk 0:00:10.6]} 70... a3 {[%clk 0:00:06.4]} 71. Kf2 {[%clk 0:00:10.4]} 71...
a2 {[%clk 0:00:06.1]} 72. Kg3 {[%clk 0:00:09.6]} 72... Rg4+ {[%clk 0:00:05.9]}
73. Kf2 {[%clk 0:00:07.8]} 73... Rh4 {[%clk 0:00:03.9]} 74. Kg2 {[%clk 0:00:08]}
74... e4 {[%clk 0:00:02.8]} 75. Ra5+ {[%clk 0:00:07.7]} 75... Kf4 {[%clk
0:00:02.5]} 76. Rxa2 {[%clk 0:00:08.5]} 76... Rg4+ {[%clk 0:00:02.9]} 77. Kf2
{[%clk 0:00:08.3]} 77... f5 {[%clk 0:00:03.1]} 78. Ra4 {[%clk 0:00:08.2]} 78...
Rh4 {[%clk 0:00:03.7]} 79. Rb4 {[%clk 0:00:08]} 79... Rh2+ {[%clk 0:00:03.9]}
80. Kg1 {[%clk 0:00:08.5]} 80... Ra2 {[%clk 0:00:04.6]} 81. Rb8 {[%clk
0:00:08.2]} 81... e3 {[%clk 0:00:04.9]} 82. Rb4+ {[%clk 0:00:07.8]} 82... Kf3
{[%clk 0:00:05.2]} 83. Rb3 {[%clk 0:00:08.6]} 83... Ra1+ {[%clk 0:00:04.5]} 84.
Kh2 {[%clk 0:00:08.9]} 84... f4 {[%clk 0:00:05.1]} 85. Rb2 {[%clk 0:00:08.3]}
85... e2 {[%clk 0:00:05.5]} 86. Rb3+ {[%clk 0:00:08.3]} 86... Kf2 {[%clk
0:00:05.7]} 87. Rb2 {[%clk 0:00:08.7]} 87... f3 {[%clk 0:00:05.7]} 88. Rc2
{[%clk 0:00:08.6]} 88... Ra8 {[%clk 0:00:04.4]} 89. Kh3 {[%clk 0:00:07.3]} 89...
Kf1 {[%clk 0:00:04.9]} 90. Kg4 {[%clk 0:00:08.2]} 90... e1=Q {[%clk 0:00:05.1]}
91. Rh2 {[%clk 0:00:08.6]} 91... Qe4+ {[%clk 0:00:04.8]} 92. Kh3 {[%clk
0:00:08.9]} 92... Rh8+ {[%clk 0:00:05.1]} 93. Kg3 {[%clk 0:00:08.5]} 93... Rg8+
{[%clk 0:00:05.2]} 94. Kh3 {[%clk 0:00:08.4]} 94... Qh7# {[%clk 0:00:05.7]} 0-1

[Event "Early-Titled-Tuesday-Blitz-February-13-2024"]
[Site "Chess.com"]
[Date "2024.02.13"]
[Round "9"]
[White "FoxOnTheRun97"]
[Black "Juicy_Fork"]
[Result "1-0"]
[WhiteElo "2668"]
[BlackElo "2478"]
[TimeControl "180+1"]
[EndTime "9:43:05 PST"]
[Termination "FoxOnTheRun97 won by resignation"]

1. d4 {[%clk 0:03:00.9]} 1... Nf6 {[%clk 0:02:59.4]} 2. Bg5 {[%clk 0:03:00.5]}
2... g6 {[%clk 0:02:58.7]} 3. Bxf6 {[%clk 0:03:00.5]} 3... exf6 {[%clk
0:02:59.6]} 4. e3 {[%clk 0:03:01.2]} 4... Bg7 {[%clk 0:02:59]} 5. g3 {[%clk
0:03:01.7]} 5... O-O {[%clk 0:02:59]} 6. Bg2 {[%clk 0:03:02]} 6... d5 {[%clk
0:02:59.1]} 7. Ne2 {[%clk 0:03:02.2]} 7... f5 {[%clk 0:02:59.5]} 8. O-O {[%clk
0:03:02.5]} 8... c6 {[%clk 0:02:58.1]} 9. c4 {[%clk 0:02:59.4]} 9... dxc4 {[%clk
0:02:57.1]} 10. Na3 {[%clk 0:02:45.3]} 10... Be6 {[%clk 0:02:56.2]} 11. Nf4
{[%clk 0:02:45.3]} 11... Bd5 {[%clk 0:02:53.5]} 12. Nxd5 {[%clk 0:02:45.1]}
12... cxd5 {[%clk 0:02:53.5]} 13. Qf3 {[%clk 0:02:45.5]} 13... c3 {[%clk
0:02:42.1]} 14. Qxd5 {[%clk 0:02:33.5]} 14... Qa5 {[%clk 0:02:41.8]} 15. Qxa5
{[%clk 0:02:33]} 1-0

[Event "Early-Titled-Tuesday-Blitz-February-13-2024"]
[Site "Chess.com"]
[Date "2024.02.13"]
[Round "9"]
[White "ilushka"]
[Black "Yeritsyaan"]
[Result "0-1"]
[WhiteElo "2467"]
[BlackElo "2611"]
[TimeControl "180+1"]
[EndTime "9:43:45 PST"]
[Termination "Yeritsyaan won by resignation"]

1. Nf3 {[%clk 0:03:00.8]} 1... Nf6 {[%clk 0:02:59.5]} 2. g3 {[%clk 0:03:00.9]}
2... b6 {[%clk 0:03:00.1]} 3. Bg2 {[%clk 0:03:00.7]} 3... Bb7 {[%clk 0:03:00.8]}
4. c4 {[%clk 0:03:01]} 4... e6 {[%clk 0:03:01.5]} 5. d4 {[%clk 0:03:00.8]} 5...
Be7 {[%clk 0:02:59.2]} 6. O-O {[%clk 0:03:00.8]} 6... O-O {[%clk 0:02:59.8]} 7.
Nc3 {[%clk 0:03:00.2]} 7... d6 {[%clk 0:02:59.1]} 8. Qc2 {[%clk 0:02:58.1]} 8...
Nbd7 {[%clk 0:02:59.6]} 9. e4 {[%clk 0:02:53.8]} 9... e5 {[%clk 0:02:59.4]} 10.
h3 {[%clk 0:02:49.3]} 10... Re8 {[%clk 0:02:59.3]} 11. Re1 {[%clk 0:02:47.9]}
11... Bf8 {[%clk 0:02:58]} 12. Be3 {[%clk 0:02:47.4]} 12... g6 {[%clk
0:02:35.3]} 13. Rad1 {[%clk 0:02:41.3]} 13... exd4 {[%clk 0:02:29.1]} 14. Nxd4
{[%clk 0:02:40.3]} 14... Bg7 {[%clk 0:02:27.6]} 15. Nd5 {[%clk 0:02:33.4]} 15...
a6 {[%clk 0:02:18.2]} 16. b3 {[%clk 0:02:32]} 16... Nc5 {[%clk 0:02:10.9]} 17.
Bc1 {[%clk 0:02:18]} 17... Nxd5 {[%clk 0:02:02.7]} 18. exd5 {[%clk 0:02:17.5]}
18... Rxe1+ {[%clk 0:02:00.4]} 19. Rxe1 {[%clk 0:02:17.3]} 19... Bxd4 {[%clk
0:02:01.1]} 0-1

[Event "Early-Titled-Tuesday-Blitz-February-13-2024"]
[Site "Chess.com"]
[Date "2024.02.13"]
[Round "9"]
[White "Canal_Showdrez"]
[Black "WiktoriaPOL"]
[Result "0-1"]
[WhiteElo "2085"]
[BlackElo "2281"]
[TimeControl "180+1"]
[EndTime "9:44:25 PST"]
[Termination "WiktoriaPOL won by resignation"]

1. d4 {[%clk 0:03:00.9]} 1... Nf6 {[%clk 0:02:57.4]} 2. Nf3 {[%clk 0:03:00.8]}
2... g6 {[%clk 0:02:56.7]} 3. e3 {[%clk 0:03:00.3]} 3... Bg7 {[%clk 0:02:57.2]}
4. Bd3 {[%clk 0:03:00.2]} 4... d6 {[%clk 0:02:57.8]} 5. O-O {[%clk 0:02:59.8]}
5... O-O {[%clk 0:02:58.5]} 6. Nbd2 {[%clk 0:03:00]} 6... Nbd7 {[%clk
0:02:57.4]} 7. b3 {[%clk 0:03:00.1]} 7... e5 {[%clk 0:02:57.7]} 8. dxe5 {[%clk
0:03:00.3]} 8... dxe5 {[%clk 0:02:57.6]} 9. Bb2 {[%clk 0:03:00.6]} 9... Re8
{[%clk 0:02:56.7]} 10. e4 {[%clk 0:02:56.3]} 10... c6 {[%clk 0:02:50.7]} 11. Qe2
{[%clk 0:02:55.8]} 11... Qc7 {[%clk 0:02:47.3]} 12. Bc4 {[%clk 0:02:52.7]} 12...
b5 {[%clk 0:02:45.1]} 13. Bd3 {[%clk 0:02:47.3]} 13... Bb7 {[%clk 0:02:44.7]}
14. c4 {[%clk 0:02:46.8]} 14... a6 {[%clk 0:02:44.2]} 15. cxb5 {[%clk
0:02:44.9]} 15... cxb5 {[%clk 0:02:40.2]} 16. Rac1 {[%clk 0:02:42.4]} 16... Qb6
{[%clk 0:02:38.6]} 17. b4 {[%clk 0:02:39.7]} 17... Qd6 {[%clk 0:02:31.4]} 18. a3
{[%clk 0:02:33.5]} 18... Rac8 {[%clk 0:02:30.5]} 19. Nb3 {[%clk 0:02:32.9]}
19... Rxc1 {[%clk 0:02:20.5]} 20. Rxc1 {[%clk 0:02:31.6]} 20... Rc8 {[%clk
0:02:21.1]} 21. Rd1 {[%clk 0:02:11.4]} 21... Qe6 {[%clk 0:02:18.5]} 22. Na5
{[%clk 0:02:06.7]} 22... Ba8 {[%clk 0:02:14.2]} 23. Ba1 {[%clk 0:02:01]} 23...
Nh5 {[%clk 0:02:13.8]} 24. Qb2 {[%clk 0:01:59.4]} 24... Nf4 {[%clk 0:02:10.5]}
25. Bb1 {[%clk 0:01:54.3]} 25... Qg4 {[%clk 0:02:05.4]} 26. Ne1 {[%clk 0:01:50]}
26... Qxd1 {[%clk 0:02:04.1]} 0-1